Cogmind - Beta 12 @@@ ROGUE MODE // 2023.05.16 @ 00:00:37 Player: Mr Goldstein Result: Destroyed by P-80 Master with Gamma Rifle Performance ------------- Evolutions (8) 4000 Regions Visited (18) 3600 Robots Destroyed (10) 50 Value Destroyed (441) 441 Prototype IDs (1) 20 Alien Tech Used (0) 0 Bonus (1526) 1526 TOTAL SCORE: 9637 Bonus ------- High Alert Combat Kills 12 Follower Combat Kills 14 Entered DSFs 1500 Cogmind --------- Core Integrity 0/1450 Matter 68/300 Energy 98/100 System Corruption 4% Temperature Cool (0) Movement Core (50) Location -2/Testing Parts ------- > --- POWER (1) -------- (None) > --- PROPULSION (2) --- (None) > --- UTILITY (18) ----- Launcher Guidance Computer Faulty Experimental Core Analyzer System Shield System Shield > --- WEAPON (2) ------- (None) > --- INVENTORY (5) ---- Improved Hacking Suite Improved Hacking Suite Improved Hacking Suite System Shield Fusion Bomb Launcher Peak State ------------ > --- POWER ------------ (None) > --- PROPULSION ------- (None) > --- UTILITY ---------- Launcher Guidance Computer Improved Light Armor Plating System Shield System Shield System Shield System Shield System Shield System Shield System Shield System Shield > --- WEAPON ----------- (None) > --- INVENTORY -------- Improved Hacking Suite Improved Hacking Suite Improved Hacking Suite Missile Launcher Missile Launcher [Rating: 33] Favorites ----------- Power None Propulsion None Utility System Shield Device Reaction Control System Processor Launcher Guidance Computer Hackware System Shield Protection Improved Light Armor Plating Weapon Missile Launcher Launcher Missile Launcher Build | -11 -10 -10 -9 -8 -7 -7 -6 -6 -6 -6 -5 -4 -4 -4 -3 -3 -2 -2 ------- Run | Jun Mat Min Mat Mat Fac DSF Fac Was Fac DSF Fac Fac Upp Upp Res DSF Res Tes Slots Evolved 16 | . . . 2 2 2 . 2 . . . 2 2 . . 2 . 2 . Power . | . . . . . . . . . . . . . . . . . . . Propulsion . | . . . . . . . . . . . . . . . . . . . Utility 16 | . . . 2 2 2 . 2 . . . 2 2 . . 2 . 2 . Weapon . | . . . . . . . . . . . . . . . . . . . Parts Attached 27 | . . . . . . 3 1 . . 10 . 7 . . . 4 . 2 Power . | . . . . . . . . . . . . . . . . . . . Engine . | . . . . . . . . . . . . . . . . . . . Core . | . . . . . . . . . . . . . . . . . . . Reactor . | . . . . . . . . . . . . . . . . . . . Propulsion . | . . . . . . . . . . . . . . . . . . . Treads . | . . . . . . . . . . . . . . . . . . . Leg . | . . . . . . . . . . . . . . . . . . . Wheel . | . . . . . . . . . . . . . . . . . . . Hover . | . . . . . . . . . . . . . . . . . . . Flight . | . . . . . . . . . . . . . . . . . . . Utility 21 | . . . . . . 3 1 . . 10 . 1 . . . 4 . 2 Device 1 | . . . . . . 1 . . . . . . . . . . . . Storage . | . . . . . . . . . . . . . . . . . . . Processor 4 | . . . . . . 2 . . . . . 1 . . . . . 1 Hackware 13 | . . . . . . . . . . 8 . . . . . 4 . 1 Protection 3 | . . . . . . . 1 . . 2 . . . . . . . . Artifact . | . . . . . . . . . . . . . . . . . . . Weapon 6 | . . . . . . . . . . . . 6 . . . . . . Energy Gun . | . . . . . . . . . . . . . . . . . . . Energy Cannon . | . . . . . . . . . . . . . . . . . . . Ballistic Gun . | . . . . . . . . . . . . . . . . . . . Ballistic Cannon . | . . . . . . . . . . . . . . . . . . . Launcher 6 | . . . . . . . . . . . . 6 . . . . . . Special Weapon . | . . . . . . . . . . . . . . . . . . . Impact Weapon . | . . . . . . . . . . . . . . . . . . . Slashing Weapon . | . . . . . . . . . . . . . . . . . . . Piercing Weapon . | . . . . . . . . . . . . . . . . . . . Special Melee Weapon . | . . . . . . . . . . . . . . . . . . . Unidentified Prototypes 1 | . . . . . . . . . . . . . . . . . . 1 Parts Lost 13 | . . . . . . 1 . . . 2 5 2 . . . . 1 2 Power . | . . . . . . . . . . . . . . . . . . . Propulsion . | . . . . . . . . . . . . . . . . . . . Utility 12 | . . . . . . 1 . . . 2 5 1 . . . . 1 2 Weapon 1 | . . . . . . . . . . . . 1 . . . . . . Highest Loss Streak 4 | . . . . . . 1 . . . 1 4 1 . . . . 1 2 To Critical Strikes . | . . . . . . . . . . . . . . . . . . . Average Slot Usage (%) 15 | . . . . . . 10 13 13 13 31 41 16 5 5 4 17 21 19 Processor 6 | . . . . . . 9 13 13 13 6 5 7 5 5 4 4 4 6 Hackware 8 | . . . . . . . . . . 20 32 7 . . . 13 17 11 Naked Turns 190 | . 23 69 44 36 2 16 . . . . . . . . . . . . Heaviest Build 3 | . . . . . . 1 . . . 3 3 . . . . . . . Greatest Support 3 | 3 3 3 3 3 3 3 3 3 3 3 3 3 3 3 3 3 3 3 Greatest Overweight (x) . | . . . . . . . . . . . . . . . . . . . Average Overweight (x) . | . . . . . . . . . . . . . . . . . . . Largest Inventory Capacity 5 | 5 5 5 5 5 5 5 5 5 5 5 5 5 5 5 5 5 5 5 Average Capacity 5 | 5 5 5 5 5 5 5 5 5 5 5 5 5 5 5 5 5 5 5 Most Carried 5 | . . . . . . 4 5 5 5 5 5 5 5 5 5 5 5 5 Average Carried 4 | . . . . . . 1 4 5 5 4 5 4 4 5 5 4 5 5 Final Capacity 5 | 5 5 5 5 5 5 5 5 5 5 5 5 5 5 5 5 5 5 5 Final Carried 5 | . . . . . . 4 5 5 5 5 5 4 5 5 5 5 5 5 Class Distribution -------------------- 59% | Mutant 31% | Hacker-Mutant 8% | Wizard-Mutant Dominant Class ---------------- Mutant | -10/Materials Mutant | -10/Mines Mutant | -9/Materials Mutant | -8/Materials Mutant | -7/Factory Mutant | -7/DSF Mutant | -6/Factory Mutant | -6/Waste Mutant | -6/Factory Mutant | -6/DSF Wizard-Mutant | -5/Factory Hacker-Mutant | -4/Factory Mutant | -4/Upper Caves Mutant | -4/Upper Caves Mutant | -3/Research Mutant | -3/DSF Hacker-Mutant | -2/Research Hacker-Mutant | -2/Testing Resources | -11 -10 -10 -9 -8 -7 -7 -6 -6 -6 -6 -5 -4 -4 -4 -3 -3 -2 -2 ----------- Run | Jun Mat Min Mat Mat Fac DSF Fac Was Fac DSF Fac Fac Upp Upp Res DSF Res Tes Matter Collected 278 | 181 . 6 . . . 25 . . . . . . 66 . . . . . Remotely . | . . . . . . . . . . . . . . . . . . . Salvage Created 116 | . . 20 . . . . . . . . . 96 . . . . . . Parts 8 | . . . . . . . . . . . . 8 . . . . . . Haulers Intercepted . | . . . . . . . . . . . . . . . . . . . Recyclers Shooed . | . . . . . . . . . . . . . . . . . . . Parts Field Recycled . | . . . . . . . . . . . . . . . . . . . Retrieved Matter . | . . . . . . . . . . . . . . . . . . . Parts Self-Destructed . | . . . . . . . . . . . . . . . . . . . Prevented . | . . . . . . . . . . . . . . . . . . . Kills | -11 -10 -10 -9 -8 -7 -7 -6 -6 -6 -6 -5 -4 -4 -4 -3 -3 -2 -2 ------- Run | Jun Mat Min Mat Mat Fac DSF Fac Was Fac DSF Fac Fac Upp Upp Res DSF Res Tes Combat Hostiles Destroyed 9 | . . 1 . . . . . . . . . 8 . . . . . . Melee 1 | . . 1 . . . . . . . . . . . . . . . . AOE 8 | . . . . . . . . . . . . 8 . . . . . . Classes Destroyed 4 | . . 1 . . . . . . . . . 3 . . . . . . Builder 1 | . . . . . . . . . . . . 1 . . . . . . Swarmer 6 | . . 1 . . . . . . . . . 5 . . . . . . Grunt 2 | . . . . . . . . . . . . 2 . . . . . . Duelist 1 | . . . . . . . . . . . . 1 . . . . . . Best Kill Streak 5 | . . 1 . . . . . . . . . 5 . . . . . . Combat Bots Only 5 | . . 1 . . . . . . . . . 5 . . . . . . Max Kills in Single Turn 3 | . . 1 . . . . . . . . . 3 . . . . . . Gunslinging . | . . . . . . . . . . . . . . . . . . . Exploded 2 | . . . . . . . . . . . . 2 . . . . . . Melee 1 | . . 1 . . . . . . . . . . . . . . . . Uniques/NPCs Destroyed . | . . . . . . . . . . . . . . . . . . . Combat | -11 -10 -10 -9 -8 -7 -7 -6 -6 -6 -6 -5 -4 -4 -4 -3 -3 -2 -2 -------- Run | Jun Mat Min Mat Mat Fac DSF Fac Was Fac DSF Fac Fac Upp Upp Res DSF Res Tes Damage Taken 4448 | . . 190 147 . . 177 95 . . 535 605 548 351 186 . 79 65 1470 Core 3910 | . . 190 147 . . 147 93 . . 422 387 451 350 186 . 79 35 1423 Absorbed by Shields . | . . . . . . . . . . . . . . . . . . . Core Remaining (%) 63 | 100 . 24 63 100 . 79 . . . 39 61 . . 14 . 93 . . Volleys Fired 9 | . . . . . . . . . . . . 9 . . . . . . Largest 2 | . . . . . . . . . . . . 2 . . . . . . Hottest 72 | . . . . . . . . . . . . 72 . . . . . . Shots Fired 11 | . . . . . . . . . . . . 11 . . . . . . Gun . | . . . . . . . . . . . . . . . . . . . Cannon . | . . . . . . . . . . . . . . . . . . . Launcher 11 | . . . . . . . . . . . . 11 . . . . . . Special . | . . . . . . . . . . . . . . . . . . . Kinetic . | . . . . . . . . . . . . . . . . . . . Thermal . | . . . . . . . . . . . . . . . . . . . Explosive 11 | . . . . . . . . . . . . 11 . . . . . . Electromagnetic . | . . . . . . . . . . . . . . . . . . . Robot Hit Streak 1 | . . . . . . . . . . . . 1 . . . . . . Robot Miss Streak . | . . . . . . . . . . . . . . . . . . . Penetration Max . | . . . . . . . . . . . . . . . . . . . Secondary Targets . | . . . . . . . . . . . . . . . . . . . Shots Hit Robots 1 | . . . . . . . . . . . . 1 . . . . . . Core Hits 16 | . . 2 . . . . . . . . . 13 . . . . . 1 Critical Kills . | . . . . . . . . . . . . . . . . . . . Critical Parts Destroyed . | . . . . . . . . . . . . . . . . . . . Critical Strikes . | . . . . . . . . . . . . . . . . . . . Melee Attacks . | . . . . . . . . . . . . . . . . . . . Impact . | . . . . . . . . . . . . . . . . . . . Slashing . | . . . . . . . . . . . . . . . . . . . Piercing . | . . . . . . . . . . . . . . . . . . . Sneak Attacks . | . . . . . . . . . . . . . . . . . . . Combat Hostiles . | . . . . . . . . . . . . . . . . . . . Follow-up Attacks . | . . . . . . . . . . . . . . . . . . . Damage Inflicted 1639 | . . 28 18 . . . 5 . . . 1 1564 2 . . . 13 8 Guns . | . . . . . . . . . . . . . . . . . . . Cannons . | . . . . . . . . . . . . . . . . . . . Explosions 1553 | . . . . . . . . . . . . 1553 . . . . . . Melee . | . . . . . . . . . . . . . . . . . . . Ramming 86 | . . 28 18 . . . 5 . . . 1 11 2 . . . 13 8 Kinetic . | . . . . . . . . . . . . . . . . . . . Thermal 957 | . . . . . . . . . . . . 957 . . . . . . Explosive 596 | . . . . . . . . . . . . 596 . . . . . . Electromagnetic . | . . . . . . . . . . . . . . . . . . . Impact . | . . . . . . . . . . . . . . . . . . . Slashing . | . . . . . . . . . . . . . . . . . . . Piercing . | . . . . . . . . . . . . . . . . . . . Highest Corruption 9 | . . 3 . . . . . 9 9 9 . 1 1 1 . . . 4 Average Corruption 2 | . . 2 . . . . . 9 9 9 . 1 1 1 . . . 1 Corruption Purged . | . . . . . . . . . . . . . . . . . . . Corruption Blocked . | . . . . . . . . . . . . . . . . . . . Effects 4 | . . 1 . . . . . 1 . 1 . . 1 . . . . . Matter Fused 2 | . . . . . . . . 1 . . . . 1 . . . . . Energy Discharges 1 | . . 1 . . . . . . . . . . . . . . . . Parts Rejected 1 | . . . . . . . . . . 1 . . . . . . . . Overload Shots . | . . . . . . . . . . . . . . . . . . . Overflow Damage 175 | . . . . . . . . . . . . 175 . . . . . . Projectiles . | . . . . . . . . . . . . . . . . . . . Explosions 175 | . . . . . . . . . . . . 175 . . . . . . Melee . | . . . . . . . . . . . . . . . . . . . Knockbacks . | . . . . . . . . . . . . . . . . . . . Impact . | . . . . . . . . . . . . . . . . . . . Kinetic . | . . . . . . . . . . . . . . . . . . . Secondary . | . . . . . . . . . . . . . . . . . . . Self-Inflicted Damage 37 | . . 12 8 . . . 2 . . . . 4 1 . . . 6 4 Shots . | . . . . . . . . . . . . . . . . . . . Rammed 20 | . . 7 2 . . . 1 . . . 1 4 1 . . . 1 3 Targets Rammed 20 | . . 7 2 . . . 1 . . . 1 4 1 . . . 1 3 Kicked . | . . . . . . . . . . . . . . . . . . . Crushed . | . . . . . . . . . . . . . . . . . . . Highest Temperature . | . . . . . . . . . . . . . . . . . . . Average Temperature . | . . . . . . . . . . . . . . . . . . . Received Heat Transfer 408 | . . . 9 . . . 18 . . 72 117 120 27 . . . 9 36 Siege Activations . | . . . . . . . . . . . . . . . . . . . Robots Corrupted . | . . . . . . . . . . . . . . . . . . . Combat Hostiles . | . . . . . . . . . . . . . . . . . . . Parts Fried . | . . . . . . . . . . . . . . . . . . . Impact Corruptions . | . . . . . . . . . . . . . . . . . . . Robots Melted . | . . . . . . . . . . . . . . . . . . . Combat Hostiles . | . . . . . . . . . . . . . . . . . . . Parts Melted . | . . . . . . . . . . . . . . . . . . . Heat Transferred 550 | . . . . . . . . . . . . 550 . . . . . . Parts Sabotaged . | . . . . . . . . . . . . . . . . . . . Parts Stolen . | . . . . . . . . . . . . . . . . . . . Parts Stripped . | . . . . . . . . . . . . . . . . . . . Power Chain Reactions . | . . . . . . . . . . . . . . . . . . . Missiles Intercepted . | . . . . . . . . . . . . . . . . . . . Alert | -11 -10 -10 -9 -8 -7 -7 -6 -6 -6 -6 -5 -4 -4 -4 -3 -3 -2 -2 ------- Run | Jun Mat Min Mat Mat Fac DSF Fac Was Fac DSF Fac Fac Upp Upp Res DSF Res Tes Peak Influence 615 | . 15 161 107 59 26 33 86 45 31 26 103 615 . . 264 213 124 244 Initial 264 | . . 5 62 44 26 18 11 30 31 21 8 50 . . 264 198 119 69 Average 167 | . 1 94 73 46 26 22 30 37 31 15 28 418 . . 264 199 119 108 Maximum Alert Level 2 | . . . . . . . . . . . . 2 . . 1 1 . 1 Low Security (%) 70 | 100 100 100 100 100 100 100 100 100 100 100 100 8 . . . 87 100 90 Level 1 8 | . . . . . . . . . . . . 18 . . 100 12 . 9 Level 2 21 | . . . . . . . . . . . . 72 . . . . . . Level 3 . | . . . . . . . . . . . . . . . . . . . Level 4 . | . . . . . . . . . . . . . . . . . . . Level 5 . | . . . . . . . . . . . . . . . . . . . High Security . | . . . . . . . . . . . . . . . . . . . Max Security . | . . . . . . . . . . . . . . . . . . . Squads Dispatched 6 | . . . 1 . . 1 . . . . 1 . . . . . . 3 Investigation 1 | . . . . . . . . . . . 1 . . . . . . . Extermination . | . . . . . . . . . . . . . . . . . . . Reinforcement 5 | . . . 1 . . 1 . . . . . . . . . . . 3 Assault . | . . . . . . . . . . . . . . . . . . . Garrison . | . . . . . . . . . . . . . . . . . . . Intercept . | . . . . . . . . . . . . . . . . . . . Searches Triggered . | . . . . . . . . . . . . . . . . . . . Construction Impeded . | . . . . . . . . . . . . . . . . . . . Haulers Reinforced . | . . . . . . . . . . . . . . . . . . . Active Scanning Responses . | . . . . . . . . . . . . . . . . . . . Cargo Convoy Interrupts . | . . . . . . . . . . . . . . . . . . . Stealth | -11 -10 -10 -9 -8 -7 -7 -6 -6 -6 -6 -5 -4 -4 -4 -3 -3 -2 -2 --------- Run | Jun Mat Min Mat Mat Fac DSF Fac Was Fac DSF Fac Fac Upp Upp Res DSF Res Tes Distress Signals 2 | . . . . . . . 1 . . . . 1 . . . . . . Communications Jammed . | . . . . . . . . . . . . . . . . . . . Distress Signals . | . . . . . . . . . . . . . . . . . . . Times Spotted 102 | . 2 10 8 2 . 5 7 4 . 4 11 15 8 2 . 1 1 22 Peak Tracking Total 15 | . 2 6 9 2 . 4 6 4 . 3 7 5 6 2 . 1 1 15 Tactical Retreats 19 | . . 3 . . . 1 1 . . 1 3 2 4 . . 1 . 3 Traps | -11 -10 -10 -9 -8 -7 -7 -6 -6 -6 -6 -5 -4 -4 -4 -3 -3 -2 -2 ------- Run | Jun Mat Min Mat Mat Fac DSF Fac Was Fac DSF Fac Fac Upp Upp Res DSF Res Tes Traps Triggered 8 | . . . . 1 . . 1 . . 1 . 3 . . . . . 2 Indirectly . | . . . . . . . . . . . . . . . . . . . Trap Hack Attempts . | . . . . . . . . . . . . . . . . . . . Triggered . | . . . . . . . . . . . . . . . . . . . Disarmed . | . . . . . . . . . . . . . . . . . . . Reprogrammed . | . . . . . . . . . . . . . . . . . . . Reused . | . . . . . . . . . . . . . . . . . . . Traps Extracted . | . . . . . . . . . . . . . . . . . . . Installed . | . . . . . . . . . . . . . . . . . . . Triggered . | . . . . . . . . . . . . . . . . . . . Machines | -11 -10 -10 -9 -8 -7 -7 -6 -6 -6 -6 -5 -4 -4 -4 -3 -3 -2 -2 ---------- Run | Jun Mat Min Mat Mat Fac DSF Fac Was Fac DSF Fac Fac Upp Upp Res DSF Res Tes Machines Disabled 9 | . . . . . . . . . . . . 9 . . . . . . Max in Single Turn 4 | . . . . . . . . . . . . 4 . . . . . . Machines Repaired . | . . . . . . . . . . . . . . . . . . . Machines Sabotaged . | . . . . . . . . . . . . . . . . . . . Overloaded Fab Kills . | . . . . . . . . . . . . . . . . . . . Hacking | -11 -10 -10 -9 -8 -7 -7 -6 -6 -6 -6 -5 -4 -4 -4 -3 -3 -2 -2 --------- Run | Jun Mat Min Mat Mat Fac DSF Fac Was Fac DSF Fac Fac Upp Upp Res DSF Res Tes Machines Accessed 8 | . . . . . 1 . 1 . 1 . 2 1 1 . 1 . . . Terminals 8 | . . . . . 1 . 1 . 1 . 2 1 1 . 1 . . . Fabricators . | . . . . . . . . . . . . . . . . . . . Repair Stations . | . . . . . . . . . . . . . . . . . . . Recycling Units . | . . . . . . . . . . . . . . . . . . . Scanalyzers . | . . . . . . . . . . . . . . . . . . . Garrison Access . | . . . . . . . . . . . . . . . . . . . Total Hacks 17 | . . . . . 1 . 1 . 2 . 9 1 1 . 2 . . . Successful 6 | . . . . . 1 . . . 1 . 1 1 1 . 1 . . . Failed 11 | . . . . . . . 1 . 1 . 8 . . . 1 . . . Catastrophic 2 | . . . . . . . . . . . 2 . . . . . . . Database Lockouts . | . . . . . . . . . . . . . . . . . . . Manual 10 | . . . . . . . 1 . . . 9 . . . . . . . Terminals 17 | . . . . . 1 . 1 . 2 . 9 1 1 . 2 . . . Fabricators . | . . . . . . . . . . . . . . . . . . . Repair Stations . | . . . . . . . . . . . . . . . . . . . Recycling Units . | . . . . . . . . . . . . . . . . . . . Scanalyzers . | . . . . . . . . . . . . . . . . . . . Garrison Access . | . . . . . . . . . . . . . . . . . . . Terminal Hacks 6 | . . . . . 1 . . . 1 . 1 1 1 . 1 . . . Record 1 | . . . . . . . . . . . . . 1 . . . . . Open DSF 3 | . . . . . 1 . . . 1 . . . . . 1 . . . Branch Access Points 2 | . . . . . . . . . . . 1 1 . . . . . . Fabricator Hacks . | . . . . . . . . . . . . . . . . . . . Repair Station Hacks . | . . . . . . . . . . . . . . . . . . . Recycling Unit Hacks . | . . . . . . . . . . . . . . . . . . . Scanalyzer . | . . . . . . . . . . . . . . . . . . . Garrison Access Hacks . | . . . . . . . . . . . . . . . . . . . Unauthorized Hacks . | . . . . . . . . . . . . . . . . . . . Terminals . | . . . . . . . . . . . . . . . . . . . Fabricators . | . . . . . . . . . . . . . . . . . . . Repair Stations . | . . . . . . . . . . . . . . . . . . . Recycling Units . | . . . . . . . . . . . . . . . . . . . Scanalyzers . | . . . . . . . . . . . . . . . . . . . Garrison Access . | . . . . . . . . . . . . . . . . . . . Data Cores Recovered . | . . . . . . . . . . . . . . . . . . . Used . | . . . . . . . . . . . . . . . . . . . Hacking Detections 6 | . . . . . 1 . 1 . 1 . 1 1 . . 1 . . . Full Trace Events 1 | . . . . . . . . . . . 1 . . . . . . . Feedback Events . | . . . . . . . . . . . . . . . . . . . Feedback Blocked . | . . . . . . . . . . . . . . . . . . . Robot Schematics Acquired . | . . . . . . . . . . . . . . . . . . . Robots Built . | . . . . . . . . . . . . . . . . . . . Authchips . | . . . . . . . . . . . . . . . . . . . Time . | . . . . . . . . . . . . . . . . . . . Total Robot Build Rating . | . . . . . . . . . . . . . . . . . . . Part Schematics Acquired . | . . . . . . . . . . . . . . . . . . . Parts Built . | . . . . . . . . . . . . . . . . . . . Authchips . | . . . . . . . . . . . . . . . . . . . Time . | . . . . . . . . . . . . . . . . . . . Total Part Build Rating . | . . . . . . . . . . . . . . . . . . . Parts Repaired . | . . . . . . . . . . . . . . . . . . . Time . | . . . . . . . . . . . . . . . . . . . Parts Recycled . | . . . . . . . . . . . . . . . . . . . Recycled Matter . | . . . . . . . . . . . . . . . . . . . Retrieved Matter . | . . . . . . . . . . . . . . . . . . . Retrieved Components . | . . . . . . . . . . . . . . . . . . . Parts Scanalyzed . | . . . . . . . . . . . . . . . . . . . Part Schematics Acquired . | . . . . . . . . . . . . . . . . . . . Parts Damaged . | . . . . . . . . . . . . . . . . . . . Bothacking | -11 -10 -10 -9 -8 -7 -7 -6 -6 -6 -6 -5 -4 -4 -4 -3 -3 -2 -2 ------------ Run | Jun Mat Min Mat Mat Fac DSF Fac Was Fac DSF Fac Fac Upp Upp Res DSF Res Tes Used RIF Installer . | . . . . . . . . . . . . . . . . . . . Robots Hacked . | . . . . . . . . . . . . . . . . . . . Non-combat . | . . . . . . . . . . . . . . . . . . . Combat . | . . . . . . . . . . . . . . . . . . . Robot Hacks Applied . | . . . . . . . . . . . . . . . . . . . Relay Couplers Released . | . . . . . . . . . . . . . . . . . . . Fabnet Peak Effective % . | . . . . . . . . . . . . . . . . . . . Robots Rewired . | . . . . . . . . . . . . . . . . . . . Allies Hacked . | . . . . . . . . . . . . . . . . . . . Hacks Repelled . | . . . . . . . . . . . . . . . . . . . Allies | -11 -10 -10 -9 -8 -7 -7 -6 -6 -6 -6 -5 -4 -4 -4 -3 -3 -2 -2 -------- Run | Jun Mat Min Mat Mat Fac DSF Fac Was Fac DSF Fac Fac Upp Upp Res DSF Res Tes Total Allies 3 | . . 2 . . . . . . . . . . . 1 . . . . Largest Group 2 | . . 2 . . . . . . . . . . . 1 . . . . Highest-Rated Group 180 | . . 41 . . . . . . . . . . . 180 . . . . Highest-Rated Ally 180 | . . 31 . . . . . . . . . . . 180 . . . . Total Orders . | . . . . . . . . . . . . . . . . . . . Ally Attacks 7 | . . 7 . . . . . . . . . . . . . . . . Total Damage 107 | . . 107 . . . . . . . . . . . . . . . . Kills 2 | . . 2 . . . . . . . . . . . . . . . . Allies Corrupted . | . . . . . . . . . . . . . . . . . . . Allies Melted . | . . . . . . . . . . . . . . . . . . . Intel | -11 -10 -10 -9 -8 -7 -7 -6 -6 -6 -6 -5 -4 -4 -4 -3 -3 -2 -2 ------- Run | Jun Mat Min Mat Mat Fac DSF Fac Was Fac DSF Fac Fac Upp Upp Res DSF Res Tes Robot Analysis Total . | . . . . . . . . . . . . . . . . . . . Derelict Logs Recovered 3 | . . 2 . . . . . . . . . . 1 . . . . . Drone Launches . | . . . . . . . . . . . . . . . . . . . Drone Recoveries . | . . . . . . . . . . . . . . . . . . . Exploration | -11 -10 -10 -9 -8 -7 -7 -6 -6 -6 -6 -5 -4 -4 -4 -3 -3 -2 -2 ------------- Run | Jun Mat Min Mat Mat Fac DSF Fac Was Fac DSF Fac Fac Upp Upp Res DSF Res Tes Turns Passed 1473 | 10 23 69 44 36 2 48 102 32 5 66 171 347 208 81 10 40 22 157 Spaces Moved 2609 | 21 46 123 83 72 4 79 196 64 10 93 340 579 411 58 19 66 43 302 Core 2609 | 21 46 123 83 72 4 79 196 64 10 93 340 579 411 58 19 66 43 302 Treads . | . . . . . . . . . . . . . . . . . . . Legs . | . . . . . . . . . . . . . . . . . . . Wheels . | . . . . . . . . . . . . . . . . . . . Hover . | . . . . . . . . . . . . . . . . . . . Flight . | . . . . . . . . . . . . . . . . . . . Fastest Speed 50 | 50 50 50 50 50 50 50 50 50 50 50 50 50 50 50 50 50 50 50 Average Speed 50 | 50 50 50 50 50 50 50 50 50 50 50 50 50 50 50 50 50 50 50 Slowest Speed 50 | 50 50 50 50 50 50 50 50 50 50 50 50 50 50 50 50 50 50 50 Overloaded Moves . | . . . . . . . . . . . . . . . . . . . Propulsion Burnouts . | . . . . . . . . . . . . . . . . . . . Robots Hopped . | . . . . . . . . . . . . . . . . . . . Cave-ins Triggered . | . . . . . . . . . . . . . . . . . . . Exploration Rate (%) 28 | 3 19 34 18 10 1 69 8 66 1 89 16 15 69 14 1 58 2 41 Regions Visited 18 Branch Regions 4 Pre-discovered Areas . | . . . . . . . . . . . . . . . . . . . Known Exits Taken 5 | . . . 1 . 1 . . . 1 . . 1 . . 1 . . . Unknown Exits Taken 8 | 1 1 1 . 1 . . . . . . 1 . 1 1 . . 1 . Scrap Searched 2 | . . . . . . . . . . . . . 2 . . . . . Spaces Dug 33 | . . . . . . . . . . . . 33 . . . . . . Terrain Destroyed 77 | . . . . . . . . . . . . 77 . . . . . . Melee . | . . . . . . . . . . . . . . . . . . . Projectile . | . . . . . . . . . . . . . . . . . . . AOE 77 | . . . . . . . . . . . . 77 . . . . . . Terrain Rammed . | . . . . . . . . . . . . . . . . . . . Walls Destroyed . | . . . . . . . . . . . . . . . . . . . Machines Disabled . | . . . . . . . . . . . . . . . . . . . Actions | -11 -10 -10 -9 -8 -7 -7 -6 -6 -6 -6 -5 -4 -4 -4 -3 -3 -2 -2 --------- Run | Jun Mat Min Mat Mat Fac DSF Fac Was Fac DSF Fac Fac Upp Upp Res DSF Res Tes Total 2742 | 20 45 129 84 71 3 85 200 63 9 108 340 625 412 109 18 71 43 307 Wait 59 | . . . . . . . . . . . . 7 . 52 . . . . Move 2595 | 20 45 122 82 71 3 78 196 63 9 92 340 579 410 57 18 65 43 302 Hop . | . . . . . . . . . . . . . . . . . . . Pick Up 10 | . . . . . . 4 1 . . 3 . . 1 . . 1 . . Fast Attach 21 | . . . . . . 3 1 . . 10 . 1 . . . 4 . 2 Attach 6 | . . . . . . . . . . . . 6 . . . . . . Detach 5 | . . . . . . . . . . . . 5 . . . . . . Swap . | . . . . . . . . . . . . . . . . . . . Drop 5 | . . . . . . . 1 . . 3 . . . . . 1 . . Fire 9 | . . . . . . . . . . . . 9 . . . . . . Melee . | . . . . . . . . . . . . . . . . . . . Ram 17 | . . 7 2 . . . 1 . . . . 3 1 . . . . 3 Kick . | . . . . . . . . . . . . . . . . . . . Crush . | . . . . . . . . . . . . . . . . . . . Escape Stasis 15 | . . . . . . . . . . . . 15 . . . . . . Rewire . | . . . . . . . . . . . . . . . . . . . Trap . | . . . . . . . . . . . . . . . . . . . Miscellaneous . | . . . . . . . . . . . . . . . . . . . Route ------- -11/Junkyard -10/Materials -10/Mines -9/Materials (discovered 2 exits: *Mat / [*Min]) -8/Materials -7/Factory -7/DSF -6/Factory -6/Waste -6/Factory -6/DSF -5/Factory (discovered 3 exits: *Fac / *Upp x2) -4/Factory (discovered 2 exits: *Upp x2) -4/Upper Caves -4/Upper Caves (discovered 2 exits: *Res x2) -3/Research -3/DSF -2/Research -2/Testing History --------- Turn | Location | Event 3 | -11/Junkyard | Discovered new exit (range 16) 11 | -11/Junkyard | Entered Materials 31 | -10/Materials | Discovered new exit (range 8) 34 | -10/Materials | Entered Mines 62 | -10/Mines | Learned location of 1 exit from Materials 77 | -10/Mines | Core integrity fell below 50% 95 | -10/Mines | Discovered new exit (range 15) 99 | -10/Mines | Learned Materials stockpile data 103 | -10/Mines | Entered Materials 103 | -9/Materials | Evolved 2 slots: Utility x2 104 | -9/Materials | Identified exit to Materials 114 | -9/Materials | Discovered new exit (range 15) 147 | -9/Materials | Entered another Materials area 147 | -8/Materials | Evolved 2 slots: Utility x2 176 | -8/Materials | Discovered new exit (range 15) 183 | -8/Materials | Entered Factory 183 | -7/Factory | Evolved 2 slots: Utility x2 185 | -7/Factory | Identified exit to DSF 185 | -7/Factory | Entered DSF 214 | -7/DSF | Additional patrols routed to DSF 214 | -7/DSF | Discovered new exit (range 14) 233 | -7/DSF | Entered Factory 233 | -6/Factory | Evolved 2 slots: Utility x2 257 | -6/Factory | Found Hvy. Reflective Plating 317 | -6/Factory | Build established: Mutant 335 | -6/Factory | Sucked down chute 335 | -6/Factory | Entered Waste 348 | -6/Waste | Spotted C-40 Crusher 350 | -6/Waste | EMP discharged 353 | -6/Waste | Spotted C-40 Crusher 357 | -6/Waste | Spotted C-40 Crusher 360 | -6/Waste | Discovered new exit (range 16) 361 | -6/Waste | Spotted C-40 Crusher 367 | -6/Waste | Entered Factory 372 | -6/Factory | Identified exit to DSF 372 | -6/Factory | Entered DSF 392 | -6/DSF | Additional patrols routed to DSF 408 | -6/DSF | Core integrity fell below 50% 432 | -6/DSF | Discovered new exit (range 11) 438 | -6/DSF | Entered Factory 438 | -5/Factory | Evolved 2 slots: Utility x2 563 | -5/Factory | Lost 4 parts (4u) 580 | -5/Factory | Identified exit to Upper Caves 608 | -5/Factory | Discovered new exit (range 2) 609 | -5/Factory | Entered another Factory area 609 | -4/Factory | Evolved 2 slots: Utility x2 914 | -4/Factory | Identified exit to Upper Caves 956 | -4/Factory | Entered Upper Caves 1128 | -4/Upper Caves | Learned Research terminal intel 1136 | -4/Upper Caves | Spotted B-86 Titan 1139 | -4/Upper Caves | Core integrity fell below 50% 1157 | -4/Upper Caves | Discovered new exit (range 7) 1164 | -4/Upper Caves | Entered another Upper Caves area 1173 | -4/Upper Caves | Core integrity fell below 20% 1185 | -4/Upper Caves | Discovered new exit (range 15) 1241 | -4/Upper Caves | 7V-RTL showed up to help 1243 | -4/Upper Caves | 7V-RTL revealed a hidden path 1245 | -4/Upper Caves | Entered Research 1245 | -3/Research | Evolved 2 slots: Utility x2 1246 | -3/Research | Loaded intel: 23 terminal locations 1255 | -3/Research | Identified exit to DSF 1255 | -3/Research | Entered DSF 1287 | -3/DSF | Found Fusion Bomb Launcher 1290 | -3/DSF | Discovered new exit (range 11) 1292 | -3/DSF | Additional patrols routed to DSF 1295 | -3/DSF | Entered Research 1295 | -2/Research | Evolved 2 slots: Utility x2 1315 | -2/Research | Discovered new exit (range 5) 1317 | -2/Research | Entered Testing 1367 | -2/Testing | Found Prototype Processor 1367 | -2/Testing | Identified Exp. Core Analyzer 1386 | -2/Testing | Spotted PD-J1497IN0YR 1431 | -2/Testing | Core integrity fell below 50% 1459 | -2/Testing | Core integrity fell below 20% 1468 | -2/Testing | Spotted Alpha 7 1474 | -2/Testing | Destroyed by P-80 Master with Gamma Rifle Last Messages --------------- 01386_ Slammed into H-88 Terminator. 01387_ Penetrated by Slug. 01398_ O-24 Administrator: "IFF HANDSHAKE FAILED. SECURING TERMINAL." 01411_ ALERT: Hostiles spotted, dispatching reinforcements to Terminal T012. 01428_ C-30 ARC bursts open, deploying its payload. 01428_ S-43 Plague unfolds itself. 01435_ Triggered Fusion Bomb Trap. 01435_ An explosion rips through the floor. 01458_ Antiparticle Suffusor explodes. 01458_ S-43 Plague destroyed. 01458_ G-73 Enforcer destroyed. 01460_ U-05 Engineer lays Concrete. 01460_ P-80 Master IFF system glitched. 01460_ U-05 Engineer destroyed. 01460_ K-01 Serf collects debris. 01461_ Drone sends a signal. 01461_ U-05 Engineer lays Concrete. 01463_ ALERT: Live fire test to commence in T-25. 01463_ K-01 Serf collects debris. Map ----- +----------------------------------------------------+ | ?????????????????????????????????????????????????? | | ?????????????????????????????????????????????????? | | ?????????????????????????????????????????????????? | | ?????????????????????????????????????????????????? | | ?????????????????????????????????????????????????? | | ?????????????????????????????????????????????????? | | ?????????????????????????????????????????????????? | | ?????????????????????????????????????????????????? | | ?????????????????????????????????????????????????? | | ?????????????????????????????????????????????????? | | ??????????????????????????? ?????????????????????? | | ???????????????????????#### #????????????????????? | | ??????????????????????? #????????????????????? | | ??????????????????????? #????????????????????? | | ??????????????????????? #????????????????????? | | ??????????????????????? +????????????????????? | | ???????????????????????# #????????????????????? | | ???????????????????????# #????????????????????? | | ???????????????????????# #????????????????????? | | ???????????????????????+ +????????????????????? | | ???????????????????????# #????????????????????? | | ???????????????????????# #????????????????????? | | ???????????????????????# #????????????????????? | | ???????????????????????#k c#????????????????????? | | ???????????????????????# #????????????????????? | | ????????????????????#### @ #????????????????????? | | ##+########?????????# #????????????????????? | | #?????????# pp #????????????????????? | | #?????????# p #????????????????????? | | #?????????#### #????????????????????? | | #????????????# #????????????????????? | | ###### #????????????# #????????????????????? | | ?????# #????????????# #????????????????????? | | ###### #????????????# #????????????????????? | | #????????????# #??##????????????????? | | #????????????# ##T ###??????????????? | | #????????????# + [#??????????????? | | #????????????# + ]#??????????????? | | ########????????????# ## ]#??????????????? | | #??##???????????????# #?????#??????????????? | | #? ????????????????+u #????????????????????? | | #? ?? ????????????# #????????????????????? | | # """ ????????????# #????????????????????? | | # """ ???????????# #????????????????????? | | + """ ???????????# #????????????????????? | | # ""?????????# #????????????????????? | | "% #?? #???????# #????????????????????? | | " #####+#########?????# #????????????????????? | | #?????# #????????????????????? | | #?????# #????????????????????? | +----------------------------------------------------+ Best States ------------- Heat Dissipation 49 Energy Generation 5 Energy Capacity 100 Matter Stores 300 Matter Capacity 300 Sight Range 16 Terrain Scan Density 10 Armor Coverage 150 Evasion (%) 58 Launcher Accuracy 40 Defensive Hacking 70 Item Schematics ----------------- None Robot Schematics ------------------ None Fabricated ------------ Nothing Alien Tech Used ----------------- None Achievements -------------- None Challenges ------------ None Game ------ Seed TerrabombMicrowarpMultirail Manual? 0 Play Time 00:17:29 Cumulative 215.4 hours Start 2023.05.15 @ 23:40:48 End 2023.05.16 @ 00:00:37 Sessions 1 Manual Loads 0 Difficulty Rogue Special Mode None Game No. 639 Rogue 639 Adventurer 0 Explorer 0 Win Type - Total 9 Types 7/0/1/1/0/0/0/0/0 Lore% 82 Gallery% 80 Achievement% 71 Wizard Run 0 Options --------- ASCII 0 Keyboard 0 Movement Numpad Keybinds 0 Fullscreen 1 Font 16/SmallcapsGlow Map View 75x55 Tactical HUD 1 Map Filters NONE Filters NONE Steam 1 RUN: a9df7738-73ac-4e68-9ebc-8ef8d9a82357